[Event "GER-ch Women Open 2019"]
[Site "Bodenmais"]
[Date "2019.08.04"]
[Round "9.6"]
[White "Weinmann, Helene"]
[Black "Wolff, Beate"]
[Result "1-0"]
[ECO "D02"]
[WhiteElo "1520"]
[BlackElo "1238"]
[Annotator "NA"]
[PlyCount "157"]
[EventDate "2019.07.27"]
[EventType "swiss"]
[EventCountry "GER"]
[SourceTitle "playchess.com"]
[Source "ChessBase"]
[SourceQuality "1"]
[TimeControl "40/5400+30:900+30"]

1. d4 {[%emt 0:00:00]} d5 {[%emt 0:00:00]} 2. Nf3 {[%emt 0:00:00]} Nf6 {[%emt 0:00:03]} 3. Bf4 {[%emt 0:00:41]} Bf5 {[%emt 0:01:03]} 4. c3 {[%emt 0:00:25]} Nbd7 {[%emt 0:02:24]} 5. Nbd2 {[%emt 0:02:01]} e6 {[%emt 0:00:54]} 6. Qb3 {[%emt 0:00:26]} Qc8 {[%emt 0:02:00]} 7. e3 {[%emt 0:00:33]} Be7 {[%emt 0:01:26]} 8. Be2 {[%emt 0:01:12]} O-O {[%emt 0:00:37]} 9. O-O {[%emt 0:00:10]} c5 {[%emt 0:05:57]} 10. Rac1 {[%emt 0:00:58]} c4 {[%emt 0:06:40]} 11. Qd1 {[%emt 0:00:36]} Qc6 {[%emt 0:05:06]} 12. Ra1 {[%emt 0:04:12]} Rfe8 {[%emt 0:07:56]} 13. Ne5 {[%emt 0:01:41]} Nxe5 {[%emt 0:02:22]} 14. Bxe5 {[%emt 0:00:36]} Nd7 {[%emt 0:01:41]} 15. Bg3 {[%emt 0:00:26]} Bd6 {[%emt 0:06:19]} 16. Bxd6 {[%emt 0:00:35]} Qxd6 {[%emt 0:00:08]} 17. Nf3 {[%emt 0:00:18]} Nf6 {[%emt 0:03:10]} 18. Nd2 {[%emt 0:02:18]} b5 {[%emt 0:06:47]} 19. Re1 {[%emt 0:01:54]} e5 {[%emt 0:06:11]} 20. dxe5 {[%emt 0:00:23]} Qxe5 {[%emt 0:01:08]} 21. Nf3 {[%emt 0:00:17]} Qd6 {[%emt 0:02:41]} 22. Nd4 {[%emt 0:01:12]} Qd7 {[%emt 0:01:41]} 23. Bf3 {[%emt 0:01:29]} Bg4 {[%emt 0:03:46]} 24. Bxg4 {[%emt 0:01:05]} Nxg4 {[%emt 0:00:44]} 25. h3 {[%emt 0:00:41]} Nf6 {[%emt 0:01:13]} 26. Qf3 {[%emt 0:02:09]} Re5 {[%emt 0:05:08]} 27. Rad1 {[%emt 0:02:43]} a6 {[%emt 0:01:29]} 28. Qg3 {[%emt 0:07:12]} Rae8 {[%emt 0:02:00]} 29. Nf3 {[%emt 0:05:21]} Re4 {[%emt 0:05:27]} 30. Rd4 {[%emt 0:02:50]} Nh5 {[%emt 0:03:00]} 31. Qh2 {[%emt 0:02:03]} Rxd4 {[%emt 0:01:33]} 32. Nxd4 {[%emt 0:00:27]} Nf6 {[%emt 0:00:46]} 33. Rd1 {[%emt 0:01:43]} h6 {[%emt 0:00:22]} 34. Qf4 {[%emt 0:01:14]} Re4 {[%emt 0:01:34]} 35. Qf5 {[%emt 0:00:28]} Qxf5 {[%emt 0:00:59]} 36. Nxf5 {[%emt 0:00:12]} Re6 {[%emt 0:01:15]} 37. Kf1 {[%emt 0:01:32]} Kh7 {[%emt 0:00:33]} 38. Nd4 {[%emt 0:03:45]} Re5 {[%emt 0:02:19]} 39. Ke2 {[%emt 0:02:41]} g5 {[%emt 0:01:42]} 40. Nc6 {[%emt 0:01:34]} Re8 {[%emt 0:02:30]} 41. Nb4 {[%emt 0:18:07]} Kg6 {[%emt 0:20:14]} 42. a3 {[%emt 0:01:15]} a5 {[%emt 0:01:18]} 43. Nc6 {[%emt 0:01:22]} a4 {[%emt 0:00:52]} 44. Nd4 {[%emt 0:01:55]} Rb8 {[%emt 0:00:00]} 45. f3 {[%emt 0:00:00]} h5 {[%emt 0:00:00]} 46. Nc6 {[%emt 0:00:00]} Re8 {[%emt 0:00:00]} 47. Rd4 {[%emt 0:00:00]} Kf5 {[%emt 0:00:00]} 48. g4+ {[%emt 0:00:00]} hxg4 {[%emt 0:00:00]} 49. hxg4+ {[%emt 0:00:00]} Kg6 {[%emt 0:00:00]} 50. Kf2 {[%emt 0:00:00]} Rh8 {[%emt 0:00:00]} 51. Kg2 {[%emt 0:00:00]} Re8 {[%emt 0:00:00]} 52. Kf2 {[%emt 0:00:00]} Rh8 {[%emt 0:00:00]} 53. Ne7+ {[%emt 0:00:00]} Kg7 {[%emt 0:00:00]} 54. Nf5+ {[%emt 0:00:00]} Kg6 {[%emt 0:00:03]} 55. Kg2 {[%emt 0:00:00]} Rd8 {[%emt 0:01:16]} 56. Rd1 {[%emt 0:00:00]} Rh8 {[%emt 0:00:51]} 57. Rh1 {[%emt 0:00:00]} Rxh1 {[%emt 0:00:25]} 58. Kxh1 {[%emt 0:00:00]} Nd7 {[%emt 0:00:16]} 59. Ne7+ {[%emt 0:00:00]} Kg7 {[%emt 0:01:00]} 60. f4 {[%emt 0:00:00]} gxf4 {[%emt 0:01:00]} 61. exf4 {[%emt 0:00:00]} Nc5 {[%emt 0:00:41]} 62. Nxd5 {[%emt 0:00:00]} Nd3 {[%emt 0:00:30]} 63. Kg2 {[%emt 0:00:00]} Nxb2 {[%emt 0:00:17]} 64. Kf3 {[%emt 0:00:17]} Nd1 {[%emt 0:00:19]} 65. Ke4 {[%emt 0:00:45]} Nf2+ {[%emt 0:00:27]} 66. Kf3 {[%emt 0:01:06]} Nd3 {[%emt 0:00:52]} 67. Nc7 {[%emt 0:01:18]} b4 {[%emt 0:00:32]} 68. cxb4 {[%emt 0:01:09]} c3 {[%emt 0:01:38]} 69. Ke3 {[%emt 0:15:09]} Ne1 {[%emt 0:00:21]} 70. Nd5 {[%emt 0:00:50]} Nc2+ {[%emt 0:00:55]} 71. Kd3 {[%emt 0:00:56]} Nxa3 {[%emt 0:00:32]} 72. Nxc3 {[%emt 0:00:14]} Kg6 {[%emt 0:00:56]} 73. Nxa4 {[%emt 0:00:15]} Nb5 {[%emt 0:00:26]} 74. Kc4 {[%emt 0:00:58]} Nd6+ {[%emt 0:00:41]} 75. Kd5 {[%emt 0:00:37]} Nb5 {[%emt 0:00:36]} 76. Kc5 {[%emt 0:01:37]} Na3 {[%emt 0:00:39]} 77. Nb6 {[%emt 0:00:31]} Nc2 {[%emt 0:00:47]} 78. Nd5 {[%emt 0:01:04]} Ne3 {[%emt 0:00:48]} 79. Nxe3 {[%emt 0:00:25]} 1-0

[Event "GER-ch Women Open 2019"]
[Site "Bodenmais"]
[Date "2019.08.04"]
[Round "9.7"]
[White "Pribylova, Ruzena"]
[Black "Peglau, Adelheid"]
[Result "1-0"]
[ECO "B15"]
[WhiteElo "1867"]
[BlackElo "1187"]
[Annotator "NA"]
[PlyCount "47"]
[EventDate "2019.07.27"]
[EventType "swiss"]
[EventCountry "GER"]
[SourceTitle "playchess.com"]
[Source "ChessBase"]
[SourceQuality "1"]
[TimeControl "40/5400+30:900+30"]

1. e4 {[%emt 0:00:00]} c6 {[%emt 0:01:05]} 2. d4 {[%emt 0:00:00]} d5 {[%emt 0:00:26]} 3. Nc3 {[%emt 0:00:00]} dxe4 {[%emt 0:00:14]} 4. Nxe4 {[%emt 0:00:00]} Nf6 {[%emt 0:00:15]} 5. Ng3 {[%emt 0:01:48]} Bg4 {[%emt 0:04:06]} 6. Be2 {[%emt 0:00:17]} Bxe2 {[%emt 0:01:05]} 7. N1xe2 {[%emt 0:00:02]} e6 {[%emt 0:00:55]} 8. O-O {[%emt 0:00:50]} Be7 {[%emt 0:01:04]} 9. c4 {[%emt 0:00:57]} O-O {[%emt 0:01:21]} 10. b3 {[%emt 0:00:31]} Nbd7 {[%emt 0:01:24]} 11. Bb2 {[%emt 0:00:14]} Nb6 {[%emt 0:07:59]} 12. Qc2 {[%emt 0:00:43]} Qc7 {[%emt 0:02:40]} 13. h3 {[%emt 0:03:02]} Nbd7 {[%emt 0:04:30]} 14. Rad1 {[%emt 0:01:07]} Rac8 {[%emt 0:02:30]} 15. Nc3 {[%emt 0:08:35]} Nb6 {[%emt 0:11:20]} 16. Rfe1 {[%emt 0:11:44]} Rfd8 {[%emt 0:03:23]} 17. Qe2 {[%emt 0:02:04]} c5 {[%emt 0:06:51]} 18. d5 {[%emt 0:03:22]} Rd6 {[%emt 0:05:06]} 19. Nb5 {[%emt 0:00:37]} Qb8 {[%emt 0:02:41]} 20. Nxd6 {[%emt 0:00:34]} Qxd6 {[%emt 0:00:02]} 21. dxe6 {[%emt 0:00:15]} Qc7 {[%emt 0:02:52]} 22. exf7+ {[%emt 0:00:19]} Kxf7 {[%emt 0:00:02]} 23. Qe6+ {[%emt 0:00:51]} Ke8 {[%emt 0:00:34]} 24. Nf5 {[%emt 0:00:31]} 1-0